fUSD/lending_fUSD_20251006
["ID","MTS","AMOUNT","RATE_DAILY","PERIOD"]
[389586274,1759727490239,-3338.67,0.00016438,2]
[389586275,1759727490250,-918.56,0.00016438,2]
[389586276,1759727490259,-3338.67,0.00016438,2]
[389586277,1759727490269,-918.56,0.00016438,2]
[389586278,1759727490278,-3338.67,0.00016438,2]
[389586279,1759727490287,-918.56,0.00016438,2]
[389586280,1759727490297,-3338.67,0.00016438,2]
[389586281,1759727490307,-918.66099772,0.00016438,2]
[389586282,1759727490316,-3338.67,0.00016438,2]
[389586283,1759727490325,-3338.67,0.00016438,2]
[389586284,1759727490335,-3338.67,0.00016438,2]
[389586285,1759727490344,-3338.67,0.00016438,2]
[389586286,1759727490353,-49.88621021,0.00016438,2]
[389586287,1759727490855,-819.81063728,0.00015267,2]
[389586288,1759727490864,-181.39611084,0.00015372,2]
[389586289,1759727490876,-598.8300007,0.00015372,2]
[389586290,1759727490887,-44.77388846,0.00015372,2]
[389586291,1759727490896,-150.0,0.00016369,2]
[389586292,1759727490905,-983.64431055,0.00016438,2]
[389586293,1759727490948,-2305.13947924,0.00016438,2]
[389586294,1759727490957,-3338.67,0.00016438,2]
[389586295,1759727490967,-3338.67,0.00016438,2]
[389586296,1759727490976,-3338.67,0.00016438,2]
[389586297,1759727490986,-1133.64635076,0.00016438,2]
[389586298,1759727491006,-317.8499993,0.00016438,2]
[389586300,1759727972073,249.0,0.000113,2]
[389586301,1759727972444,244.0,0.0001248,2]
[389586303,1759728178659,150.68,6.972e-05,2]
[389586304,1759728187532,-239.0,0.0001367,2]
[389586305,1759728187564,-327.549573,0.00014322,2]
[389586306,1759728187598,-300.0,0.00014393,2]
[389586307,1759728187633,-500.0,0.00014394,2]
[389586308,1759728187667,-500.0,0.00014394,2]
[389586309,1759728187701,-500.0,0.00014394,2]
[389586310,1759728188033,-199.00313958,0.00014394,2]
[389586311,1759728188066,-368.89457484,0.00014394,2]
[389586312,1759728188086,-131.10542516,0.00014394,2]
[389586313,1759728188096,-107.89457484,0.00014394,2]
[389586314,1759728188111,-136.43910733,0.00014394,2]
[389586315,1759728188121,-191.11046567,0.00014396,2]
[389586316,1759728188137,-300.0,0.00014396,2]
[389586317,1759728188149,-500.0,0.00014396,2]
[389586318,1759728188160,-464.94953433,0.00014396,2]
[389586319,1759728188169,-35.05046567,0.00014491,2]
[389586320,1759728188181,-238.61077394,0.00014491,2]
[389586321,1759728188191,-261.38922606,0.00014591,2]
[389586322,1759728188228,-199.00313958,0.00014591,2]
[389586323,1759728188240,-500.0,0.00014591,2]
[389586325,1759728503688,235.0,0.000122,2]
[389586359,1759728632305,-230.0,0.0001338,2]
[389586360,1759728632315,-78.42626722,0.00013562,2]
[389586361,1759728632356,-71.57373278,0.00013562,2]
[389586362,1759728632365,-160.56406573,0.00013562,2]
[389586363,1759728632375,-150.0,0.00013938,2]
[389586364,1759728632384,-666.0,0.00013945,3]
[389586365,1759728632393,-250.0,0.0001402,2]
[389586366,1759728632402,-150.0,0.00014315,2]
[389586367,1759728632411,-179.35,0.00014329,2]
[389586368,1759728632421,-225.0,0.0001457,2]
[389586369,1759728632431,-639.60763436,0.00014591,2]
[389586370,1759728632439,-150.0,0.00014692,2]
[389586371,1759728632448,-152.0,0.0001475,2]
[389586372,1759728632457,-300.0,0.00014769,2]
[389586373,1759728632466,-300.0,0.00014769,2]
[389586374,1759728632475,-1200.0,0.00014769,2]
[389586375,1759728632484,-300.0,0.00014769,2]
[389586376,1759728632493,-300.0,0.00014769,2]
[389586377,1759728632502,-170.45475577,0.00014769,2]
[389586378,1759728632512,-197.76823784,0.00014769,2]
[389586379,1759728632521,-173.43715802,0.00014769,2]
[389586380,1759728632530,-253.92155089,0.00014769,2]
[389586381,1759728632540,-353.17084885,0.00014769,2]
[389586382,1759728632549,-1365.32360548,0.0001477,2]
[389586384,1759728632559,-150.82997004,0.0001477,2]
[389586386,1759728632571,-5000.0,0.0001477,2]
[389586388,1759728632580,-1365.32360543,0.00014797,2]
[389586390,1759728632589,-150.82996998,0.00014797,2]
[389586393,1759728632599,-435.03631884,0.000148,2]
[389586395,1759728632608,-1365.32360543,0.00014823,2]
[389586397,1759728632616,-150.82996998,0.00014823,2]
[389586399,1759728632626,-292.0,0.00014842,2]
[389586400,1759728632635,-1365.32360543,0.0001485,2]
[389586403,1759728632644,-150.82996998,0.0001485,2]
[389586406,1759728632653,-236.0,0.00014856,2]
[389586409,1759728632662,-151.0,0.00014867,2]
[389586411,1759728632671,-49.58899183,0.00014869,2]
[389586415,1759728632701,-2909.22600817,0.00014869,2]
[389586417,1759728632710,-258.983,0.00014869,2]
[389586419,1759728632719,-150.0,0.00014869,2]
[389586421,1759728632728,-98.02391955,0.0001487,2]
[389586423,1759728632739,-296.8,0.0001487,2]
[389586428,1759728637997,-165.77608045,0.0001487,2]
[389586429,1759728638008,-4780.83431379,0.0001487,2]
[389586430,1759728638055,-28717.65643372,0.0001487,2]
[389586431,1759728638281,-10753.13512038,0.0001487,2]
[389586444,1759728640123,-11686.60058348,0.0001487,2]
[389586445,1759728640134,-1554.65101127,0.0001487,2]
[389586446,1759728640146,-903.4,0.0001487,2]
[389586470,1759728640943,-4359.08819124,0.0001487,2]
[389586471,1759728640957,-6357.76860996,0.0001487,2]
[389586475,1759728643424,-5169.03690979,0.0001487,2]
[389586476,1759728643438,-451449.82882637,0.0001487,2]
[389586477,1759728643447,-500.0,0.0001487,2]
[389586478,1759728643456,-1365.32360543,0.00014876,2]
[389586479,1759728643467,-150.82996998,0.00014876,2]
[389586480,1759728643476,-25918.2148,0.000149,2]
[389586481,1759728643487,-1365.32360543,0.00014903,2]
[389586482,1759728643496,-150.82996998,0.00014903,2]
[389586483,1759728643506,-1365.32360543,0.00014929,2]
[389586484,1759728643515,-150.82996998,0.00014929,2]
[389586485,1759728643524,-1365.32360543,0.00014956,2]
[389586486,1759728643534,-150.82996998,0.00014956,2]
[389586487,1759728643543,-1365.32360543,0.00014982,2]
[389586488,1759728643553,-150.82996998,0.00014982,2]
[389586489,1759728643563,-117540.43917762,0.00015,2]
[389586490,1759728643572,-106936.86829445,0.00015,2]
[389586491,1759728643581,-231.28369723,0.00015,2]
[389586492,1759728643595,-322.6107,0.00015,2]
[389586493,1759728643604,-1365.32360543,0.00015009,2]
[389586494,1759728643613,-150.82996998,0.00015009,2]
[389586495,1759728643623,-150.0,0.00015068,2]
[389586496,1759728643632,-313.0,0.00015068,2]
[389586497,1759728643642,-500.92738618,0.00015073,2]
[389586498,1759728643651,-500.0,0.00015073,2]
[389586499,1759728643662,-503.36423689,0.00015073,2]
[389586500,1759728643671,-500.0,0.00015073,2]
[389586501,1759728643680,-500.0,0.00015073,2]
[389586502,1759728643690,-500.0,0.00015073,2]
[389586503,1759728643699,-500.31995857,0.00015073,2]
[389586504,1759728643708,-500.68404833,0.00015073,2]
[389586505,1759728643717,-500.0,0.00015073,2]
[389586506,1759728643727,-500.0,0.00015073,2]
[389586507,1759728643736,-579.87087567,0.00015073,2]
[389586508,1759728643745,-500.0,0.00015073,2]
[389586509,1759728643754,-500.0,0.00015073,2]
[389586510,1759728643763,-500.0,0.00015073,2]
[389586511,1759728643773,-500.59042681,0.00015073,2]
[389586512,1759728643784,-500.0,0.00015073,2]
[389586513,1759728643795,-484.69709582,0.00015073,2]
[389586514,1759728643806,-500.0,0.00015073,2]
[389586515,1759728643816,-500.0,0.00015073,2]
[389586516,1759728643828,-500.0,0.00015073,2]
[389586517,1759728643838,-155.13,0.00015073,2]
[389586518,1759728643848,-1363.58692735,0.00015077,2]
[389586519,1759728643857,-155.46411154,0.00015077,2]
[389586520,1759728643867,-1024897.79987003,0.0001508,2]
[389586521,1759728643967,-1524.37202247,0.0001508,2]
[389586546,1759728646107,-12997.99272853,0.0001508,2]
[389586547,1759728646167,-3658.80355563,0.0001508,2]
[389586548,1759728646335,-20147.35076833,0.0001508,2]
[389586558,1759729568573,225.0,0.00013,2]
[389586559,1759729575919,1014.8,0.000157,60]
[389586595,1759729832521,-156.60739806,0.00013562,2]
[389586596,1759729832532,-150.0,0.00013562,2]
[389586597,1759729832541,-160.56406573,0.00013562,2]
[389586598,1759729832551,-264.98,0.00013989,2]
[389586599,1759729832560,-273.66123961,0.00014177,2]
[389586600,1759729832570,-221.0,0.0001418,2]
[389586601,1759729832579,-200.0,0.00014188,2]
[389586602,1759729832588,-1200.0,0.00014276,2]
[389586603,1759729832597,-300.0,0.00014277,2]
[389586604,1759729832606,-300.0,0.00014277,2]
[389586605,1759729832615,-170.45475577,0.00014278,2]
[389586606,1759729832625,-197.76823784,0.00014278,2]
[389586607,1759729832634,-173.43715802,0.00014278,2]
[389586608,1759729832643,-353.17084885,0.00014278,2]
[389586609,1759729832652,-253.92155089,0.00014278,2]
[389586610,1759729832661,-13281.41,0.00014279,2]
[389586611,1759729832670,-150.0,0.00014315,2]
[389586612,1759729832680,-154.46,0.00014442,2]
[389586613,1759729832689,-469.48,0.000145,2]
[389586614,1759729832698,-807.55,0.000145,2]
[389586615,1759729832708,-264.98,0.00014688,2]
[389586616,1759729832717,-151.0,0.00014716,2]
[389586617,1759729832727,-250.5333213,0.00014716,2]
[389586618,1759729832736,-231.28369723,0.00014716,2]
[389586619,1759729832746,-150.0,0.00014799,2]
[389586620,1759729832755,-435.03631884,0.000148,2]
[389586621,1759729832764,-814.17,0.000148,2]
[389586623,1759729832774,-545.7,0.000148,2]
[389586625,1759729832783,-175.66,0.000148,2]
[389586626,1759729832792,-348.06,0.000148,2]
[389586627,1759729832801,-1098.34,0.000148,2]
[389586628,1759729832810,-1614.86,0.000148,2]
[389586629,1759729832820,-52.49002232,0.000148,2]
[389586635,1759729832916,-678.0,0.000148,2]
[389586651,1759729838242,-77.05997768,0.000148,2]
[389586652,1759729838252,-353.87,0.000148,2]
[389586653,1759729838263,-816.39,0.000148,2]
[389586654,1759729838274,-473.94,0.000148,2]
[389586655,1759729838283,-286.0,0.00014824,2]
[389586656,1759729838293,-819.81063729,0.00014855,2]
[389586657,1759729838302,-489.7098,0.0001488,2]
[389586658,1759729838312,-1437.97500698,0.00014918,2]
[389586659,1759729838323,-5856.04,0.00014957,2]
[389586660,1759729838332,-268.0,0.0001497,2]
[389586661,1759729838342,-3033.689,0.00014979,2]
[389586662,1759729838352,-263.234,0.00014979,2]
[389586663,1759729838361,-1000.0,0.0001498,2]
[389586664,1759729838371,-162.17563231,0.0001498,2]
[389586665,1759729838380,-58258.20954435,0.0001498,2]
[389586666,1759729840425,-1810.95,0.0001498,2]
[389586667,1759729843368,-9959.34525722,0.0001498,2]
[389586668,1759729843603,-468.86415223,0.0001498,2]
[389586669,1759729843664,-423.42299998,0.0001498,2]
[389586670,1759729843776,-2675.31164622,0.0001498,2]
[389586671,1759729843785,-179.42620403,0.0001498,2]
[389586672,1759729843795,-5000.0,0.0001498,2]
[389586673,1759729843804,-5461.29442177,0.0001498,2]
[389586674,1759729843814,-233.03527693,0.0001498,2]
[389586675,1759729843823,-1039.47567426,0.0001498,2]
[389586676,1759729843832,-603.31987998,0.0001498,2]
[389586677,1759729843841,-210.83704388,0.0001498,2]
[389586678,1759729843850,-429.20175076,0.0001498,2]
[389586679,1759729843859,-189.45705258,0.0001498,2]
[389586680,1759729843868,-171.56779491,0.0001498,2]
[389586681,1759729843879,-164.99527522,0.0001498,2]
[389586682,1759729843888,-2437.5965451,0.00015013,2]
[389586683,1759729843898,-1534.4639774,0.00015013,2]
[389586684,1759729843908,-218.0007234,0.00015013,2]
[389586685,1759729843919,-2977.360696,0.00015013,2]
[389586686,1759729843930,-221.57373278,0.00015068,2]
[389586687,1759729843941,-328.28,0.0001507,2]
[389586688,1759729843955,-328.28,0.0001507,2]
[389586689,1759729843964,-328.28,0.0001507,2]
[389586690,1759729843975,-328.28,0.0001507,2]
[389586691,1759729843986,-328.28,0.0001507,2]
[389586692,1759729843995,-322.6107,0.00015071,2]
[389586693,1759729844005,-617.11908922,0.00015073,2]
[389586694,1759729844016,-501.21222796,0.00015073,2]
[389586695,1759729844025,-500.0,0.00015073,2]
[389586696,1759729844035,-500.0,0.00015073,2]
[389586697,1759729844044,-500.0,0.00015073,2]
[389586698,1759729844054,-500.73776,0.00015073,2]
[389586699,1759729844064,-500.79337865,0.00015073,2]
[389586700,1759729844073,-500.0,0.00015073,2]
[389586701,1759729844083,-239.58424838,0.00015073,2]
[389586702,1759729844092,-151.0,0.00015077,2]
[389586703,1759729844102,-14954.62490128,0.0001508,2]
[389586704,1759729844117,-65615.23289817,0.0001508,2]
[389586705,1759729844127,-514280.33417904,0.0001508,2]
[389586706,1759729846285,-347.31890241,0.0001508,2]
[389586707,1759729846451,-271.08499393,0.0001508,2]
[389586708,1759729846512,-273810.01043275,0.0001508,2]
[389586709,1759729846524,-7365.35764506,0.0001508,2]
[389586710,1759729846535,-15817.36126088,0.0001508,2]
[389586711,1759729846567,-895.2842011,0.0001508,2]
[389586713,1759729876749,2167.0,0.00011,5]
[389586715,1759729932474,456.0,0.00013116,2]
[389586716,1759729932548,456.0,0.00013116,2]
[389586717,1759729932655,456.0,0.00013116,2]
[389586718,1759729938904,158.0,0.00013116,2]
[389586721,1759729985368,388.0,0.00013116,2]
[389586722,1759729991788,159.0,0.00013116,2]
[389586729,1759730045312,368.0,0.00013116,2]
[389586730,1759730052301,159.0,0.00013116,2]
[389586741,1759730106022,350.0,0.00013116,2]
[389586742,1759730112299,159.0,0.00013116,2]
[389586744,1759730168045,332.0,0.00013116,2]
[389586745,1759730226389,316.0,0.00013116,2]
[389586747,1759730287954,300.0,0.00013116,2]
[389586748,1759730345917,285.0,0.00013116,2]
[389586749,1759730409293,271.0,0.00013116,2]
[389586751,1759730467635,257.0,0.00013116,2]
[389586752,1759730526213,244.0,0.00013116,2]
[389586753,1759730585492,232.0,0.00013116,2]
[389586755,1759730632770,217.0,0.000129,2]
[389586756,1759730651846,221.0,0.00013116,2]
[389586757,1759730706661,210.0,0.00013116,2]
[389586758,1759730768195,199.0,0.00013116,2]
[389586759,1759730826272,189.0,0.00013116,2]
[389586760,1759730854022,160.4,6.963e-05,2]
[389586761,1759730888102,180.0,0.00013116,2]
[389586762,1759730952083,171.0,0.00013116,2]
[389586763,1759731009903,162.0,0.00013116,2]
[389586783,1759731031578,-405.11916631,0.00013906,2]
[389586784,1759731031588,-150.0,0.00014005,2]
[389586785,1759731031598,-300.0,0.00014005,2]
[389586786,1759731031607,-201.27105758,0.00014006,2]
[389586787,1759731031618,-401.93862657,0.00014006,2]
[389586788,1759731031628,-500.0,0.00014006,2]
[389586789,1759731031639,-500.0,0.00014006,2]
[389586790,1759731031649,-443.00424445,0.00014006,2]
[389586791,1759731031660,-56.99575555,0.00014006,2]
[389586792,1759731031670,-285.20997629,0.00014006,2]
[389586793,1759731031682,-214.79002371,0.00014006,2]
[389586794,1759731031691,-478.85929058,0.00014006,2]
[389586795,1759731031922,-21.14070942,0.00014006,2]
[389586796,1759731031932,-300.81047944,0.00014006,2]
[389586797,1759731031985,-199.18952056,0.00014006,2]
[389586798,1759731031995,-500.0,0.00014006,2]
[389586799,1759731032004,-500.0,0.00014006,2]
[389586800,1759731032014,-485.31599839,0.00014006,2]
[389586801,1759731032102,-14.68400161,0.00014006,2]
[389586803,1759731032112,-500.0,0.00014006,2]
[389586805,1759731032122,-305.13253713,0.00014006,2]
[389586807,1759731032131,-500.0,0.00014006,2]
[389586809,1759731032141,-500.0,0.00014006,2]
[389586811,1759731032150,-500.0,0.00014006,2]
[389586813,1759731032160,-500.0,0.00014006,2]
[389586815,1759731032169,-500.0,0.00014006,2]
[389586817,1759731032179,-500.0,0.00014006,2]
[389586819,1759731032188,-500.0,0.00014006,2]
[389586821,1759731032197,-500.0,0.00014006,2]
[389586823,1759731032207,-684.0,0.00014006,2]
[389586824,1759731032216,-156.81,0.00014006,2]
[389586826,1759731032227,-162.0,0.00014012,3]
[389586828,1759731032237,-1600.0,0.00014037,2]
[389586830,1759731032247,-150.0,0.00014068,7]
[389586831,1759731032256,-212.0,0.0001408,2]
[389586832,1759731032265,-200.0,0.00014104,2]
[389586833,1759731032275,-156.81,0.0001428,2]
[389586834,1759731032285,-673.32,0.00014309,2]
[389586835,1759731032294,-881.45,0.000144,2]
[389586836,1759731032303,-953.1,0.00014441,2]
[389586837,1759731032312,-156.82,0.00014554,2]
[389586838,1759731032321,-175.69,0.00014578,2]
[389586839,1759731032330,-807.65,0.00014584,2]
[389586840,1759731032340,-947.88,0.000146,2]
[389586842,1759731032349,-222.0,0.00014695,2]
[389586845,1759731032359,-292.0,0.00014715,2]
[389586847,1759731032369,-163.19995037,0.00014896,2]
[389586848,1759731032378,-692.98378284,0.00014896,2]
[389586850,1759731032387,-2022.14,0.000149,2]
[389586852,1759731032397,-3116.171,0.000149,2]
[389586854,1759731032406,-274.871,0.000149,2]
[389586856,1759731032415,-156.05144292,0.000149,2]
[389586858,1759731032424,-162.0,0.00014908,3]
[389586860,1759731032433,-151.62407954,0.00014971,2]
[389586862,1759731032443,-3229.56567015,0.00014971,2]
[389586865,1759731032453,-231.28369723,0.00014971,2]
[389586866,1759731032465,-177.74508563,0.00014979,2]
[389586868,1759731032477,-247.21959419,0.00014979,2]
[389586870,1759731032486,-3508.22312534,0.0001498,2]
[389586873,1759731032497,-48463.0444329,0.0001498,2]
[389586875,1759731032506,-15606.6898,0.0001498,2]
[389586876,1759731032515,-160.95085569,0.0001498,2]
[389586878,1759731032525,-5000.0,0.0001498,2]
[389586879,1759731032534,-155.3568513,0.0001498,2]
[389586880,1759731032544,-2170.7271494,0.0001498,2]
[389586881,1759731032553,-21972.1948785,0.0001498,2]
[389586882,1759731032565,-36519.99302793,0.0001498,2]
[389586885,1759731037554,-26051.69332626,0.0001498,2]
[389586886,1759731037611,-1202.8078043,0.0001498,2]
[389586889,1759731039632,-12363.0,0.0001498,2]
[389586890,1759731039644,-11914.712,0.0001498,2]
[389586891,1759731039656,-6630.28792712,0.0001498,2]
[389586892,1759731039761,-2054.86838987,0.0001498,2]
[389586893,1759731039979,-253.71,0.0001498,2]
[389586894,1759731042526,-500.0,0.00014005,2]
[389586895,1759731042535,-533.90361524,0.00014005,2]
[389586896,1759731042544,-1314.29638476,0.0001498,2]
[389586897,1759731042587,-3323.05287521,0.0001498,2]
[389586898,1759731042705,-25017.45557639,0.0001498,2]
[389586899,1759731042885,-13387.93531595,0.0001498,2]
[389586900,1759731042940,-428014.420553,0.0001498,2]
[389586903,1759731045689,-293.9850001,0.0001498,2]
[389586906,1759731624922,10000.0,0.000131,2]
[389586907,1759731630307,10000.0,0.000131,2]
[389586908,1759731638408,10000.0,0.000131,2]
[389586909,1759731648071,10000.0,0.000131,2]
[389586910,1759731694203,208.0,0.000128,2]
[389586915,1759731883578,160.0,0.000131,2]
[389586916,1759731884242,160.0,0.000131,2]
[389586917,1759731884947,160.0,0.000131,2]
[389586918,1759731886720,160.0,0.000131,3]
[389586919,1759731887197,160.0,0.000131,3]
[389586920,1759731916135,160.0,0.000131,3]
[389586921,1759731923495,160.0,0.000131,2]
[389586922,1759731924419,160.0,0.000131,2]
[389586923,1759731932988,160.0,0.000131,4]
[389586924,1759731934157,160.0,0.000131,4]
[389586925,1759732042769,500.0,5.7e-05,2]
[389586926,1759732043126,555.92154251,5e-05,2]
[389586934,1759732225922,204.0,0.000118,2]
[389586935,1759732226673,200.0,0.0001298,2]
[389586958,1759732231675,-154.46,0.00013862,2]
[389586959,1759732231684,-200.0,0.00013865,2]
[389586960,1759732231694,-307.654404,0.00014,8]
[389586965,1759732231765,-559.44986533,0.00014,8]
[389586966,1759732231775,-666.0,0.00014128,3]
[389586967,1759732231784,-196.0,0.0001417,2]
[389586968,1759732231793,-500.0,0.00014201,2]
[389586969,1759732231803,-500.0,0.00014201,2]
[389586970,1759732231815,-500.0,0.00014201,2]
[389586971,1759732231825,-417.16003778,0.00014201,2]
[389586972,1759732231840,-300.0,0.00014203,2]
[389586973,1759732231850,-2000.0,0.00014205,2]
[389586974,1759732231859,-285.0,0.00014568,2]
[389586975,1759732231869,-179.36,0.00014574,2]
[389586976,1759732231878,-285.0,0.00014574,2]
[389586977,1759732231888,-231.28369723,0.00014663,2]
[389586978,1759732231901,-285.0,0.00014678,2]
[389586979,1759732231911,-166.0,0.00014716,2]
[389586980,1759732231921,-285.0,0.00014721,2]
[389586981,1759732231931,-285.0,0.00014723,2]
[389586982,1759732231942,-1000.0,0.00014728,2]
[389586983,1759732231951,-1000.0,0.0001475,2]
[389586984,1759732231961,-285.0,0.0001477,2]
[389586985,1759732231970,-285.0,0.0001477,2]
[389586986,1759732231982,-285.0,0.00014772,2]
[389586987,1759732231993,-911.17157984,0.00014778,2]
[389586988,1759732232002,-285.0,0.00014794,2]
[389586989,1759732232011,-160.0,0.000148,5]
[389586990,1759732232020,-160.0,0.000148,5]
[389586991,1759732232029,-160.0,0.000148,5]
[389586992,1759732232038,-160.0,0.000148,6]
[389586993,1759732232047,-158.0,0.000148,6]
[389586994,1759732232056,-159.0,0.000148,6]
[389586995,1759732232065,-285.0,0.00014816,2]
[389586996,1759732232074,-250.0,0.00014818,2]
[389586997,1759732232083,-322.6107,0.00014821,2]
[389586998,1759732232092,-500.0,0.00014821,2]
[389586999,1759732232101,-601.3376128,0.00014821,2]
[389587000,1759732232110,-500.0,0.00014821,2]
[389587001,1759732232119,-151.0,0.00014821,2]
[389587002,1759732232128,-500.0,0.00014821,2]
[389587003,1759732232137,-151.0,0.00014821,2]
[389587004,1759732232146,-159.46827941,0.00014821,2]
[389587006,1759732232155,-500.0,0.00014821,2]
[389587008,1759732232164,-151.0,0.00014821,2]
[389587009,1759732232174,-500.0,0.00014821,2]
[389587011,1759732232183,-500.0,0.00014821,2]
[389587012,1759732232192,-151.0,0.00014821,2]
[389587013,1759732232201,-500.0,0.00014821,2]
[389587014,1759732232211,-184.39222873,0.00014821,2]
[389587015,1759732232220,-500.0,0.00014821,2]
[389587016,1759732232229,-500.0,0.00014821,2]
[389587017,1759732232238,-161.15350971,0.00014821,2]
[389587018,1759732232247,-151.0,0.00014821,2]
[389587019,1759732232256,-500.0,0.00014821,2]
[389587020,1759732232265,-151.0,0.00014821,2]
[389587021,1759732232275,-500.0,0.00014821,2]
[389587022,1759732232284,-151.0,0.00014821,2]
[389587023,1759732232294,-500.0,0.00014821,2]
[389587024,1759732232303,-151.0,0.00014821,2]
[389587025,1759732232312,-567.72883956,0.00014821,2]
[389587026,1759732232322,-151.0,0.00014821,2]
[389587027,1759732232331,-500.0,0.00014821,2]
[389587028,1759732232340,-203.05725991,0.00014821,2]
[389587029,1759732232349,-151.0,0.00014821,2]
[389587030,1759732232359,-220.99626486,0.00014821,2]
[389587031,1759732232367,-151.0,0.00014821,2]
[389587032,1759732232376,-629.79472893,0.00014821,2]
[389587033,1759732232386,-291.79566579,0.00014821,2]
[389587034,1759732232395,-200.0,0.00014821,2]
[389587035,1759732232404,-200.0,0.00014821,2]
[389587036,1759732232414,-200.0,0.00014821,2]
[389587037,1759732232428,-200.0,0.00014821,2]
[389587038,1759732232438,-200.0,0.00014821,2]
[389587039,1759732232448,-152.6050414,0.00014821,2]
[389587040,1759732232458,-500.0,0.00014821,2]
[389587041,1759732232467,-500.0,0.00014821,2]
[389587042,1759732232476,-500.0,0.00014821,2]
[389587043,1759732232485,-500.0,0.00014821,2]
[389587044,1759732232494,-504.61875281,0.00014821,2]
[389587045,1759732232503,-1425.0,0.00014853,2]
[389587046,1759732232512,-285.0,0.00014859,2]
[389587047,1759732232522,-285.0,0.00014869,2]
[389587048,1759732232531,-160.95085568,0.0001488,2]
[389587049,1759732232540,-182.94141491,0.0001488,2]
[389587050,1759732232549,-1185.55145085,0.0001488,2]
[389587051,1759732232558,-5000.0,0.0001488,2]
[389587052,1759732232567,-9390.64464742,0.0001488,2]
[389587053,1759732232576,-461.98918856,0.0001488,2]
[389587054,1759732232585,-28512.44308156,0.000149,2]
[389587055,1759732232595,-1000.0,0.00014902,2]
[389587056,1759732232604,-1449.04791118,0.0001492,2]
[389587057,1759732232613,-215.98033907,0.00014931,2]
[389587058,1759732232622,-1000.0,0.00014954,2]
[389587059,1759732232631,-825.0,0.00014954,2]
[389587060,1759732232640,-285.0,0.00014958,2]
[389587061,1759732232649,-1000.0,0.00014959,2]
[389587062,1759732232658,-825.0,0.00014966,2]
[389587063,1759732232666,-41222.37781538,0.00014971,2]
[389587064,1759732232675,-173.6888985,0.00014971,2]
[389587065,1759732232685,-201.43833459,0.00014971,2]
[389587066,1759732232695,-500.0,0.00014971,2]
[389587067,1759732232704,-150.0,0.00014971,2]
[389587068,1759732232714,-2824.6618604,0.00014971,2]
[389587069,1759732232724,-500.0,0.00014971,2]
[389587070,1759732232733,-150.0,0.00014971,2]
[389587071,1759732232743,-480.0,0.00014971,2]
[389587072,1759732232752,-150.0,0.00014971,2]
[389587073,1759732232760,-150.0,0.00014971,2]
[389587074,1759732232769,-150.0,0.00014971,2]
[389587075,1759732232779,-672.0,0.00014971,2]
[389587076,1759732232788,-445.0,0.00014971,2]
[389587077,1759732232797,-200.73214208,0.00014971,2]
[389587078,1759732232806,-636.0,0.00014971,2]
[389587079,1759732232815,-150.0,0.00014971,2]
[389587080,1759732232824,-150.0,0.00014971,2]
[389587081,1759732232834,-2128.0,0.00014971,2]
[389587082,1759732232843,-1236.0,0.00014971,2]
[389587083,1759732232852,-500.0,0.00014971,2]
[389587084,1759732232862,-150.79218515,0.00014971,2]
[389587085,1759732232871,-191.8800678,0.00014971,2]
[389587086,1759732232880,-500.0,0.00014973,2]
[389587087,1759732232890,-501.51725008,0.00014973,2]
[389587088,1759732232899,-500.0,0.00014973,2]